bitfinex/quotes_BTCUSD_20240803
["timestamp","ask_amount","ask_price","bid_price","bid_amount"]
[1722705479505,0.010208,60792.0,60791.0,0.68750566]
[1722705479726,0.010208,60792.0,60791.0,0.53004642]
[1722705480189,0.010208,60792.0,60791.0,1.01650166]
[1722705480614,0.00083,60800.0,60799.0,0.82238]
[1722705480823,0.00083,60800.0,60799.0,1.43179124]
[1722705481032,0.00083,60800.0,60799.0,1.77864049]
[1722705481273,0.00083,60800.0,60799.0,0.35283249]
[1722705481702,0.00083,60800.0,60799.0,0.68178449]
[1722705481911,0.00083,60800.0,60799.0,0.00789725]
[1722705482126,0.00083,60800.0,60799.0,0.01889725]
[1722705482334,0.00083,60800.0,60799.0,0.011]
[1722705482552,0.00083,60800.0,60799.0,0.02021346]
[1722705482778,0.00083,60800.0,60799.0,0.011]
[1722705483195,0.32276224,60800.0,60799.0,0.011]
[1722705483403,1.38960324,60800.0,60799.0,0.011]
[1722705483611,1.38960324,60800.0,60770.0,0.329108]
[1722705483612,0.329012,60788.0,60770.0,0.329108]
[1722705483826,0.329012,60788.0,60764.0,0.48251164]
[1722705483827,0.329023,60786.0,60771.0,0.15745924]
[1722705484043,0.07875194,60789.0,60771.0,0.00800142]
[1722705484044,0.164529,60780.0,60771.0,0.00800142]
[1722705484257,0.34345924,60785.0,60771.0,0.00800142]
[1722705484478,0.07875194,60782.0,60761.0,0.329153]
[1722705484687,0.07875194,60775.0,60748.0,0.065915]
[1722705484894,0.23745924,60774.0,60770.0,0.001]
[1722705485340,0.106,60766.0,60754.0,0.164596]
[1722705485548,0.106,60766.0,60751.0,0.07875194]
[1722705485753,0.106,60766.0,60755.0,0.00806099]
[1722705485975,0.106,60766.0,60756.0,0.00805726]
[1722705486191,0.07875194,60764.0,60739.0,0.01]
[1722705486436,0.07875194,60764.0,60738.0,0.0245]
[1722705486437,0.164593,60756.0,60741.0,0.329264]
[1722705486644,0.329153,60762.0,60732.0,0.07875194]
[1722705486857,0.329195,60755.0,60733.0,0.15745924]
[1722705487077,0.164609,60750.0,60733.0,0.15745924]
[1722705487283,0.164609,60750.0,60731.0,0.00926]
[1722705487284,0.186,60746.0,60731.0,0.00926]
[1722705487495,0.15745924,60745.0,60731.0,0.00926]
[1722705487708,0.164645,60737.0,60731.0,0.00926]
[1722705487945,0.329273,60740.0,60731.0,0.00926]
[1722705488152,0.15745924,60740.0,60732.0,0.001]
[1722705488360,0.186,60746.0,60732.0,0.07975194]
[1722705488573,0.15745924,60745.0,60732.0,0.07875194]
[1722705488779,0.2,60746.0,60732.0,0.07875194]
[1722705488780,0.2,60746.0,60739.0,0.07875194]
[1722705489020,0.164634,60741.0,60731.0,0.00926]
[1722705489226,0.013,60740.0,60733.0,0.07875194]
[1722705489444,0.013,60740.0,60739.0,0.493915]
[1722705490065,0.013,60740.0,60739.0,0.823192]
[1722705490316,0.013,60740.0,60739.0,0.846192]
[1722705490528,0.08,60753.0,60736.0,0.329289]
[1722705490529,0.005,60745.0,60736.0,0.329289]
[1722705490742,0.005,60745.0,60744.0,0.164625]
[1722705490950,0.005,60745.0,60738.0,0.07875194]
[1722705490951,0.013,60745.0,60738.0,0.07875194]
[1722705491153,0.08,60753.0,60738.0,0.07875194]
[1722705491374,0.15745924,60752.0,60739.0,0.002]
[1722705491593,0.001,60740.0,60739.0,0.24538994]
[1722705491808,0.08,60753.0,60743.0,0.32925]
[1722705492022,0.08,60753.0,60739.0,0.08887252]
[1722705492232,0.08,60753.0,60731.0,0.08801194]
[1722705492233,0.014,60745.0,60744.0,0.00810196]
[1722705492441,0.014,60745.0,60731.0,0.00926]
[1722705492668,0.15745924,60744.0,60738.0,0.001]
[1722705493160,0.679915,60739.0,60738.0,0.001]
[1722705493361,0.34345924,60739.0,60738.0,0.001]
[1722705493566,0.50809724,60739.0,60738.0,0.001]
[1722705493780,0.34345924,60739.0,60738.0,0.001]
[1722705493994,0.34345924,60739.0,60731.0,0.00926]
[1722705494236,0.823287,60732.0,60731.0,0.00926]
[1722705494441,0.65143124,60732.0,60731.0,0.00926]
[1722705494670,0.32211624,60732.0,60731.0,0.00926]
[1722705494887,1.59606124,60732.0,60731.0,0.00926]
[1722705495080,1.26674624,60732.0,60731.0,0.00926]
[1722705495759,0.45245924,60732.0,60731.0,0.00926]
[1722705495957,0.089,60732.0,60731.0,0.00926]
[1722705496163,0.094,60732.0,60731.0,0.01026]
[1722705496585,0.587972,60732.0,60731.0,0.01026]
[1722705496796,0.74543124,60732.0,60731.0,0.01026]
[1722705497003,0.40711624,60732.0,60731.0,0.01026]
[1722705497214,0.73643124,60732.0,60731.0,0.01026]
[1722705497422,1.40406124,60732.0,60731.0,0.00926]
[1722705497621,1.49006124,60732.0,60731.0,0.00926]
[1722705497824,1.49006124,60732.0,60731.0,0.01026]
[1722705497825,1.49506124,60732.0,60731.0,0.01026]
[1722705498027,1.51406124,60732.0,60731.0,0.01026]
[1722705498264,1.51406124,60732.0,60709.0,0.07875194]
[1722705498265,0.01,60730.0,60709.0,0.07875194]
[1722705498473,0.45245924,60732.0,60702.0,0.40822694]
[1722705498474,0.329376,60721.0,60702.0,0.07875194]
[1722705498691,0.329341,60728.0,60702.0,0.07875194]
[1722705498692,0.164716,60711.0,60702.0,0.07875194]
[1722705498907,0.44345924,60720.0,60703.0,0.00963059]
[1722705499125,0.329391,60718.0,60703.0,0.08838253]
[1722705499367,0.286,60720.0,60703.0,0.08204625]
[1722705499587,0.15745924,60717.0,60704.0,0.00721968]
[1722705499800,0.15745924,60717.0,60703.0,0.07875194]
[1722705499801,0.15745924,60717.0,60710.0,0.07875194]
[1722705500018,0.286,60720.0,60710.0,0.07875194]
[1722705500241,0.286,60720.0,60714.0,0.164706]
[1722705500459,0.186,60731.0,60718.0,0.07875194]
[1722705500696,0.08,60731.0,60729.0,0.329331]
[1722705500901,0.08,60731.0,60719.0,0.03017073]
[1722705500902,0.005,60720.0,60719.0,0.03017073]
[1722705501121,0.005,60720.0,60719.0,0.023]
[1722705501335,0.007,60720.0,60719.0,0.187693]
[1722705501544,0.08,60731.0,60719.0,0.023]
[1722705501762,0.005,60731.0,60725.0,0.07875194]
[1722705501967,0.013,60731.0,60726.0,0.023]
[1722705502193,0.005,60731.0,60730.0,0.164663]
[1722705502398,0.106,60739.0,60730.0,0.164663]
[1722705502399,0.106,60739.0,60730.0,0.023]
[1722705502612,0.15903363,60738.0,60726.0,0.023]
[1722705502820,0.329294,60736.0,60726.0,0.023]
[1722705503030,0.15745924,60735.0,60721.0,0.023]
[1722705503264,0.00157439,60734.0,60725.0,0.07875194]
[1722705503477,0.00157439,60734.0,60721.0,0.023]
[1722705503478,0.15745924,60734.0,60726.0,0.023]
[1722705503678,0.48834463,60733.0,60721.0,0.023]
[1722705503906,0.0769,60722.0,60713.0,0.4675]
[1722705504111,0.26125924,60721.0,60713.0,0.4675]
[1722705504524,0.1647,60717.0,60713.0,0.4675]
[1722705504730,0.329413,60714.0,60698.0,0.4675]
[1722705504933,0.15745924,60713.0,60700.0,0.07875194]
[1722705505348,0.15745924,60713.0,60707.0,0.07875194]
[1722705505979,0.164718,60710.0,60700.0,0.07875194]
[1722705506194,0.16472,60709.0,60700.0,0.002]
[1722705506629,0.15745924,60713.0,60701.0,0.24349294]
[1722705506837,0.00984621,60720.0,60708.0,0.07875194]
[1722705507066,0.0769,60722.0,60708.0,0.07875194]
[1722705507067,0.329396,60718.0,60708.0,0.07875194]
[1722705507269,0.0769,60722.0,60708.0,0.07875194]
[1722705507477,0.164714,60712.0,60701.0,0.07875194]
[1722705507688,0.164719,60710.0,60709.0,0.00720336]
[1722705507895,0.164719,60710.0,60700.0,0.07875194]
[1722705507896,0.15745924,60711.0,60700.0,0.07875194]
[1722705508106,0.15745924,60711.0,60707.0,0.002]
[1722705508499,0.15745924,60711.0,60700.0,0.07875194]
[1722705508710,0.329435,60710.0,60700.0,0.07875194]
[1722705508907,0.598017,60702.0,60701.0,0.01022947]
[1722705509040,0.1038,60702.0,60701.0,0.003]
[1722705509242,0.494281,60694.0,60693.0,0.000913]
[1722705509440,0.329518,60695.0,60693.0,0.000913]
[1722705509667,0.25745924,60701.0,60693.0,0.000913]
[1722705509871,0.164753,60697.0,60693.0,0.000913]
[1722705510072,0.16476,60694.0,60693.0,0.000913]
[1722705510372,0.72864024,60694.0,60693.0,0.000913]
[1722705510522,0.0769,60694.0,60693.0,0.000913]
[1722705510749,0.39911924,60694.0,60693.0,0.000913]
[1722705511187,0.40411924,60694.0,60693.0,0.000913]
[1722705511384,0.0819,60694.0,60693.0,0.000913]
[1722705511603,0.11362293,60702.0,60693.0,0.000913]
[1722705511604,0.1038,60702.0,60693.0,0.000913]
[1722705511819,0.0769,60709.0,60701.0,0.07875194]
[1722705512021,0.0769,60709.0,60694.0,0.07875194]
[1722705512247,0.494209,60703.0,60702.0,0.00722621]
[1722705512452,0.494209,60703.0,60693.0,0.001913]
[1722705512453,0.329467,60705.0,60693.0,0.000913]
[1722705512714,0.15745924,60704.0,60693.0,0.000913]
[1722705513037,0.164742,60701.0,60694.0,0.00725232]
[1722705513162,0.32220424,60700.0,60695.0,0.023]
[1722705513392,0.005,60702.0,60696.0,0.07875194]
[1722705513592,0.005,60702.0,60697.0,0.03024253]
[1722705513790,0.005,60702.0,60701.0,0.07875194]
[1722705514047,0.0769,60716.0,60701.0,0.10898141]
[1722705514218,0.01,60704.0,60703.0,1.153155]
[1722705514430,0.01,60704.0,60703.0,1.165155]
[1722705514779,0.1038,60727.0,60719.0,0.329382]
[1722705514921,0.0769,60730.0,60725.0,0.57278094]
[1722705515119,0.0769,60737.0,60726.0,0.329347]
[1722705515322,0.0769,60737.0,60725.0,0.00715116]
[1722705515525,0.0769,60737.0,60726.0,0.0301479]
[1722705515929,0.01002985,60745.0,60733.0,0.164653]
[1722705516128,0.00157439,60743.0,60734.0,0.03012181]
[1722705516330,0.15745924,60743.0,60734.0,0.03012181]
[1722705516589,0.23778557,60742.0,60734.0,0.023]
[1722705516715,0.07875194,60735.0,60710.0,0.07875194]
[1722705516919,0.07875194,60728.0,60709.0,0.1]
[1722705517131,0.16468,60724.0,60710.0,0.3366341]
[1722705517333,0.1038,60720.0,60710.0,0.0072001]
[1722705517546,0.23435924,60723.0,60704.0,0.07875194]
[1722705517953,0.0769,60723.0,60717.0,0.329392]
[1722705518160,0.1038,60727.0,60718.0,0.00637689]
[1722705518423,0.15745924,60726.0,60714.0,0.329408]
[1722705518623,0.15745924,60726.0,60705.0,0.15745924]
[1722705519016,0.164685,60722.0,60705.0,0.15745924]
[1722705519234,0.1038,60727.0,60717.0,0.164697]
[1722705519442,0.1038,60727.0,60718.0,0.10175194]
[1722705519650,0.004,60720.0,60719.0,0.164693]
[1722705519866,0.004,60720.0,60719.0,1.00972424]
[1722705520072,0.004,60720.0,60719.0,1.70866697]
[1722705520272,0.004,60720.0,60719.0,1.79866697]
[1722705520481,0.004,60720.0,60719.0,1.80866697]
[1722705520703,0.005,60723.0,60722.0,0.506053]
[1722705520882,0.47251164,60738.0,60737.0,0.493932]
[1722705521125,0.47251164,60738.0,60737.0,0.84622]
[1722705521329,0.0769,60750.0,60737.0,0.03112804]
[1722705521531,0.15903363,60749.0,60738.0,0.023]
[1722705521735,0.00157439,60749.0,60738.0,0.023]
[1722705521944,0.1038,60752.0,60739.0,0.15745924]
[1722705522148,0.1038,60752.0,60746.0,0.164619]
[1722705522361,0.1038,60752.0,60747.0,0.023]
[1722705522614,0.014,60750.0,60747.0,0.00707943]
[1722705522836,0.014,60750.0,60748.0,0.023]
[1722705523052,0.005,60749.0,60748.0,0.516839]
[1722705523278,0.005,60749.0,60748.0,0.03017779]
[1722705525057,0.7777,60785.0,60748.0,0.03017779]
[1722705525058,0.00157439,60757.0,60748.0,0.023]
[1722705525190,0.00157439,60759.0,60749.0,0.023]
[1722705525399,0.164593,60756.0,60750.0,0.00717127]
[1722705525596,0.15903363,60755.0,60751.0,0.023]
[1722705525775,0.0812,60746.0,60732.0,0.329313]
[1722705526040,0.0812,60746.0,60737.0,0.164643]
[1722705526237,0.26515924,60745.0,60735.0,0.00722016]
[1722705526432,0.164638,60739.0,60738.0,0.00721038]
[1722705526701,0.164642,60738.0,60726.0,0.4675]
[1722705526933,0.15745924,60737.0,60726.0,0.4675]
[1722705527138,0.00157439,60736.0,60727.0,0.00724625]
[1722705527316,0.164655,60733.0,60727.0,0.00724625]
[1722705527561,0.0812,60731.0,60726.0,0.4675]
[1722705527966,0.245861,60731.0,60727.0,0.01367451]
[1722705528180,0.0812,60731.0,60730.0,0.164663]
[1722705528386,0.0812,60741.0,60727.0,0.07875194]
[1722705528623,0.0812,60741.0,60733.0,0.329306]
[1722705528624,0.001,60739.0,60733.0,0.329306]
[1722705528828,0.0812,60741.0,60735.0,0.164647]
[1722705528829,0.00257439,60738.0,60735.0,0.164647]
[1722705529030,0.001,60738.0,60737.0,0.164644]
[1722705529241,0.1077,60745.0,60737.0,0.023]
[1722705529444,0.00157439,60744.0,60737.0,0.01360929]
[1722705529629,0.1077,60745.0,60738.0,0.35228]
[1722705529770,0.1077,60745.0,60738.0,0.023]
[1722705529971,0.164628,60743.0,60739.0,0.01359625]
[1722705530180,0.00157439,60742.0,60740.0,0.023]
[1722705530558,0.00157439,60743.0,60740.0,0.023]
[1722705530769,0.00157439,60744.0,60740.0,0.023]
[1722705530947,0.00157439,60744.0,60734.0,0.023]
[1722705531431,0.00157439,60744.0,60735.0,0.01362233]
[1722705531637,0.26515924,60745.0,60735.0,0.01362233]
[1722705531638,0.00157439,60742.0,60736.0,0.023]
[1722705531841,0.15745924,60741.0,60736.0,0.023]
[1722705532019,0.00157439,60738.0,60736.0,0.023]
[1722705532230,0.16621339,60739.0,60736.0,0.023]
[1722705532459,0.00157439,60739.0,60736.0,0.023]
[1722705532678,0.00157439,60740.0,60736.0,0.023]
[1722705532887,0.00157439,60744.0,60740.0,0.329269]
[1722705533098,0.1077,60745.0,60741.0,0.023]
[1722705533303,0.0812,60748.0,60741.0,0.03658321]
[1722705533547,0.001,60744.0,60743.0,0.493884]
[1722705533771,0.001,60744.0,60743.0,0.516884]
[1722705533976,0.1077,60752.0,60748.0,0.164614]
[1722705534178,0.0812,60755.0,60749.0,0.023]
[1722705534383,0.0812,60755.0,60752.0,0.164602]
[1722705534597,0.1077,60760.0,60753.0,0.023]
[1722705534805,0.1077,60760.0,60756.0,0.164591]
[1722705535014,0.1077,60760.0,60757.0,0.023]
[1722705535214,0.0812,60762.0,60757.0,0.03647892]
[1722705535770,0.0812,60762.0,60757.0,0.20106792]
[1722705536150,0.0812,60762.0,60757.0,0.36565892]
[1722705536354,0.002,60760.0,60759.0,0.164584]
[1722705536560,0.002,60760.0,60759.0,0.845922]
[1722705536817,0.1077,60767.0,60759.0,0.845922]
[1722705536818,0.1077,60767.0,60759.0,0.03646589]
[1722705537051,0.1077,60767.0,60766.0,0.164565]
[1722705537193,0.0812,60768.0,60766.0,0.164565]
[1722705537194,0.0812,60768.0,60766.0,0.023]
[1722705537401,0.0812,60768.0,60767.0,0.01341377]
[1722705537609,0.0812,60768.0,60767.0,0.023]
[1722705537830,0.0812,60768.0,60767.0,0.03641377]
[1722705538241,0.0812,60768.0,60767.0,0.01341377]
[1722705538411,0.0812,60768.0,60767.0,0.023]
[1722705538614,0.0812,60768.0,60767.0,0.03641377]
[1722705538841,0.0812,60768.0,60767.0,0.023]
[1722705539019,0.24576,60768.0,60767.0,0.023]
[1722705539300,0.00157439,60767.0,60748.0,0.4675]
[1722705539487,0.15745924,60766.0,60759.0,0.001]
[1722705539699,0.15745924,60766.0,60759.0,0.024]
[1722705539823,0.15745924,60766.0,60760.0,0.01345937]
[1722705540027,0.00157439,60765.0,60761.0,0.023]
[1722705540406,0.15745924,60764.0,60761.0,0.023]
[1722705540546,0.0812,60754.0,60739.0,0.4675]
[1722705541176,0.15903363,60753.0,60740.0,0.01358973]
[1722705541390,0.15903363,60753.0,60741.0,0.329266]
[1722705541597,0.15903363,60753.0,60742.0,0.01357669]
[1722705541999,0.164608,60751.0,60743.0,0.01357017]
[1722705542195,0.00157439,60750.0,60739.0,0.4675]
[1722705542395,0.15745924,60751.0,60740.0,0.01358973]
[1722705542625,0.0812,60754.0,60751.0,0.164604]
[1722705542778,0.0812,60754.0,60748.0,0.164611]
[1722705542975,0.0812,60754.0,60749.0,0.01353106]
[1722705543188,0.0812,60754.0,60750.0,0.329215]
[1722705543189,0.006,60753.0,60750.0,0.329215]
[1722705543401,0.006,60753.0,60752.0,0.49381]
[1722705543645,0.32206124,60753.0,60752.0,0.0135115]
[1722705543854,1.16816324,60753.0,60752.0,0.0135115]
[1722705544061,1.16816324,60753.0,60748.0,0.001]
[1722705544062,0.823057,60749.0,60748.0,0.001]
[1722705544269,1.31210786,60749.0,60748.0,0.001]
[1722705544486,0.2641,60745.0,60720.0,0.47251164]
[1722705544684,0.329264,60742.0,60722.0,0.07875194]
[1722705544890,0.25745924,60741.0,60722.0,0.07875194]
[1722705545108,0.0804,60745.0,60736.0,0.07875194]
[1722705545310,0.0804,60745.0,60744.0,0.164625]
[1722705545518,0.329158,60761.0,60743.0,0.07875194]
[1722705545519,0.01,60749.0,60743.0,0.07875194]
[1722705545726,0.01,60749.0,60748.0,0.493842]
[1722705545940,0.01,60749.0,60748.0,0.50964019]
[1722705546162,0.01,60749.0,60748.0,1.16809619]
[1722705546376,0.01,60749.0,60748.0,0.86186819]
[1722705546578,0.01,60749.0,60748.0,0.53264019]
[1722705546988,0.01,60749.0,60748.0,1.19109619]
[1722705547192,0.011,60749.0,60748.0,0.53964019]
[1722705547411,0.001,60749.0,60748.0,0.04579819]
[1722705547805,0.15845924,60749.0,60748.0,0.007]
[1722705548012,0.51077024,60749.0,60748.0,0.007]
[1722705548217,1.16921624,60749.0,60748.0,0.007]
[1722705548432,0.0804,60735.0,60722.0,0.55126358]
[1722705548840,0.0804,60735.0,60723.0,0.01601555]
[1722705549050,0.26475924,60734.0,60723.0,0.01601555]
[1722705549463,0.32931,60733.0,60713.0,0.07875194]
[1722705549672,0.15745924,60732.0,60722.0,0.001]
[1722705549877,0.164663,60731.0,60722.0,0.001]
[1722705550080,0.15745924,60730.0,60719.0,0.164691]
[1722705550368,0.15745924,60730.0,60723.0,0.001]
[1722705550995,0.15745924,60730.0,60724.0,0.01600685]
[1722705551453,0.579929,60725.0,60724.0,0.01600685]
[1722705551659,0.437259,60724.0,60713.0,0.4675]
[1722705551874,0.15745924,60723.0,60714.0,0.07875194]
[1722705552092,0.0859,60725.0,60721.0,0.07875194]
[1722705552303,0.0859,60725.0,60715.0,0.15745924]
[1722705552304,0.0859,60725.0,60715.0,0.07875194]
[1722705552507,0.0859,60725.0,60722.0,0.01602425]
[1722705552721,0.0859,60725.0,60715.0,0.07875194]
[1722705552935,0.001,60724.0,60723.0,0.24343394]
[1722705553137,0.001,60724.0,60723.0,0.023]
[1722705553345,0.001,60724.0,60723.0,0.03901555]
[1722705553346,0.15745924,60724.0,60723.0,0.03901555]
[1722705553546,0.15745924,60724.0,60723.0,0.01601555]
[1722705553752,0.164691,60720.0,60713.0,0.4675]
[1722705553956,0.15745924,60723.0,60714.0,0.023]
[1722705554164,0.15745924,60722.0,60714.0,0.01609385]
[1722705554295,0.15745924,60722.0,60715.0,0.023]
[1722705554494,0.002,60725.0,60716.0,0.07875194]
[1722705554695,0.002,60725.0,60717.0,0.023]
[1722705554967,0.10979685,60730.0,60717.0,0.023]
[1722705554968,0.164667,60729.0,60717.0,0.03906775]
[1722705555169,0.164671,60727.0,60717.0,0.03906775]
[1722705555372,0.001,60724.0,60717.0,0.03906775]
[1722705555580,0.164691,60720.0,60717.0,0.03906775]
[1722705555790,0.001,60722.0,60717.0,0.023]
[1722705555993,0.15745924,60719.0,60710.0,0.1]
[1722705556200,0.0859,60718.0,60711.0,0.023]
[1722705556401,0.0859,60718.0,60711.0,0.01611995]
[1722705556402,0.1079,60716.0,60711.0,0.01611995]
[1722705556617,0.15745924,60715.0,60711.0,0.01404458]
[1722705557503,0.16471,60713.0,60711.0,0.01404458]
[1722705557705,0.32216324,60715.0,60712.0,0.023]
[1722705557911,0.15745924,60715.0,60712.0,0.023]
[1722705558116,0.00157439,60714.0,60712.0,0.023]
[1722705558537,0.00157439,60714.0,60710.0,0.1]
[1722705558538,0.164708,60714.0,60711.0,0.031]
[1722705558747,0.00157439,60713.0,60711.0,0.031]
[1722705558949,0.00157439,60714.0,60711.0,0.10975194]
[1722705559151,0.00157439,60714.0,60711.0,0.031]
[1722705559393,0.329418,60713.0,60711.0,0.031]
[1722705559638,0.15903363,60714.0,60711.0,0.031]
[1722705559639,0.00157439,60712.0,60711.0,0.023]
[1722705559875,0.15845924,60714.0,60711.0,0.023]
[1722705560156,0.164711,60713.0,60712.0,0.01]
[1722705560410,0.494129,60713.0,60712.0,0.033]
[1722705560659,0.65158624,60713.0,60712.0,0.033]
[1722705560959,0.65158624,60713.0,60712.0,0.01]
[1722705560960,1.41042224,60713.0,60712.0,0.01]
[1722705561201,1.68002224,60713.0,60712.0,0.01]
[1722705561585,1.404601,60711.0,60710.0,0.0137]
[1722705561593,1.174472,60711.0,60710.0,0.0137]
[1722705561804,0.92880224,60711.0,60710.0,0.0137]
[1722705562007,0.43465924,60711.0,60710.0,0.0137]
[1722705562341,0.54303916,60711.0,60710.0,0.0137]
[1722705562547,1.25823124,60711.0,60710.0,0.0137]
[1722705563089,0.43465924,60711.0,60710.0,0.0137]
[1722705563289,0.33465924,60711.0,60710.0,0.0147]
[1722705563490,0.49937324,60711.0,60710.0,0.0147]
[1722705563864,1.15823124,60711.0,60710.0,0.0147]
[1722705564065,1.76136024,60711.0,60710.0,0.0147]
[1722705564306,0.33565924,60711.0,60710.0,0.0147]
[1722705564476,0.1782,60711.0,60710.0,0.0147]
[1722705564628,0.001,60711.0,60710.0,0.0147]
[1722705564876,0.165714,60711.0,60710.0,0.0147]
[1722705565092,0.001,60711.0,60710.0,0.0147]
[1722705565632,0.001,60711.0,60710.0,0.0521465]
[1722705565834,0.001,60711.0,60710.0,0.517152]
[1722705565955,0.001,60711.0,60710.0,0.52919075]
[1722705566312,0.001,60711.0,60710.0,0.03503875]
[1722705566572,0.40107324,60711.0,60710.0,0.01203875]
[1722705566779,0.23635924,60711.0,60700.0,0.07875194]
[1722705566981,0.00157439,60710.0,60700.0,0.07875194]
[1722705567178,0.0789,60711.0,60709.0,0.164717]
[1722705567179,0.001,60711.0,60709.0,0.164717]
[1722705567382,0.0779,60723.0,60707.0,0.24347694]
[1722705567590,0.15903363,60722.0,60707.0,0.07875194]
[1722705567800,0.15903363,60722.0,60714.0,0.07875194]
[1722705568013,0.00157439,60722.0,60715.0,0.023]
[1722705568214,0.15745924,60721.0,60715.0,0.03499524]
[1722705568417,0.0993,60724.0,60715.0,0.11374718]
[1722705568626,0.15745924,60723.0,60715.0,0.023]
[1722705568842,0.0779,60726.0,60716.0,0.09073848]
[1722705569064,0.003,60722.0,60717.0,0.023]
[1722705569278,0.16468,60724.0,60717.0,0.023]
[1722705569477,0.00157439,60723.0,60717.0,0.023]
[1722705569682,0.00157439,60725.0,60717.0,0.023]
[1722705569924,0.16445924,60724.0,60715.0,0.001]
[1722705570157,0.16445924,60724.0,60715.0,0.165703]
[1722705570364,0.15745924,60723.0,60716.0,0.023]
[1722705570588,0.329397,60717.0,60716.0,0.01198654]
[1722705570806,0.0993,60717.0,60715.0,0.001]
[1722705571034,0.007,60724.0,60716.0,0.07875194]
[1722705571257,0.005,60724.0,60708.0,0.33273815]
[1722705571525,0.007,60724.0,60717.0,0.001]
[1722705571744,0.15745924,60723.0,60717.0,0.001]
[1722705571944,0.00157439,60722.0,60715.0,0.164703]
[1722705572147,0.007,60724.0,60716.0,0.10275194]
[1722705572353,0.007,60724.0,60716.0,0.03598654]
[1722705572568,0.00157439,60723.0,60722.0,0.164684]
[1722705572779,0.02,60761.0,60722.0,0.164684]
[1722705572780,0.1772,60741.0,60727.0,0.329339]
[1722705572988,0.47251164,60746.0,60734.0,0.07875194]
[1722705573189,0.47251164,60746.0,60728.0,0.24809334]
[1722705573190,0.00157439,60745.0,60728.0,0.24809334]
[1722705573392,0.00157439,60745.0,60735.0,0.01182129]
[1722705573606,0.00157439,60748.0,60737.0,0.07875194]
[1722705573812,0.1772,60755.0,60739.0,0.329277]
[1722705574038,0.00992902,60758.0,60740.0,0.18045924]
[1722705574234,0.33465924,60762.0,60740.0,0.18045924]
[1722705574235,0.33465924,60762.0,60751.0,0.164605]
[1722705574367,0.33465924,60762.0,60752.0,0.023]
[1722705574368,0.00157439,60761.0,60752.0,0.023]
[1722705574571,0.329169,60759.0,60740.0,0.023]
[1722705574771,0.329205,60753.0,60739.0,0.023]
[1722705574954,0.07875194,60761.0,60740.0,0.01255187]
[1722705574955,0.1772,60751.0,60740.0,0.01255187]
[1722705575153,0.164619,60747.0,60741.0,0.023]
[1722705575370,0.07875194,60752.0,60722.0,0.4675]
[1722705575371,0.329261,60742.0,60722.0,0.4675]
[1722705575575,0.07875194,60745.0,60722.0,0.4675]
[1722705575576,0.33623363,60741.0,60723.0,0.0126997]
[1722705575780,0.33465924,60741.0,60723.0,0.0126997]
[1722705575983,0.1772,60748.0,60724.0,0.2395046]
[1722705576181,0.00157439,60747.0,60739.0,0.001]
[1722705576387,0.00957439,60747.0,60741.0,0.001]
[1722705576594,0.008,60747.0,60746.0,0.164619]
[1722705576790,0.008,60747.0,60746.0,0.83888907]
[1722705577000,0.008,60747.0,60746.0,0.85859672]
[1722705577662,0.008,60747.0,60746.0,0.20011872]
[1722705577882,0.00157439,60760.0,60746.0,0.03549972]
[1722705578080,0.00157439,60760.0,60757.0,0.329178]
[1722705578251,0.00157439,60760.0,60750.0,0.07875194]
[1722705578252,0.00157439,60762.0,60758.0,0.187586]
[1722705578463,0.00157439,60767.0,60758.0,0.03539544]
[1722705578818,0.15745924,60766.0,60758.0,0.03539544]
[1722705579024,0.1772,60768.0,60758.0,0.03539544]
[1722705579025,0.00157439,60765.0,60758.0,0.03539544]
[1722705579239,0.001,60760.0,60759.0,0.493752]
[1722705579476,0.001,60760.0,60759.0,0.01238675]
[1722705579701,0.001,60760.0,60759.0,0.19997075]
[1722705579903,0.001,60760.0,60759.0,0.5139072]
[1722705580112,0.00157439,60767.0,60759.0,0.03254095]
[1722705580320,0.164571,60764.0,60759.0,0.03254095]
[1722705580525,0.00157439,60763.0,60759.0,0.03254095]
[1722705580735,0.40077718,60766.0,60759.0,0.03254095]
[1722705580736,0.16614339,60765.0,60759.0,0.0201542]
[1722705580943,0.16614339,60765.0,60760.0,0.01237806]
[1722705581141,0.00157439,60765.0,60759.0,0.001]
[1722705581343,0.00157439,60765.0,60760.0,0.164581]
[1722705581591,0.00157439,60767.0,60761.0,0.164579]
[1722705581865,0.01257439,60767.0,60762.0,0.01236069]
[1722705581993,0.01257439,60767.0,60763.0,0.023]
[1722705582192,0.07875194,60766.0,60763.0,0.023]
[1722705582397,0.07875194,60766.0,60735.0,0.47251164]
[1722705582398,0.164595,60756.0,60735.0,0.47251164]
[1722705582599,0.329163,60760.0,60759.0,0.001]
[1722705582805,0.65120324,60760.0,60759.0,0.001]
[1722705583023,0.65120324,60760.0,60742.0,0.4675]
[1722705583024,0.32204124,60760.0,60748.0,0.164613]
[1722705583245,0.15903363,60759.0,60749.0,0.17708464]
[1722705583508,0.07875194,60766.0,60749.0,0.17708464]
[1722705583509,0.00157439,60766.0,60750.0,0.16075148]
[1722705583710,0.001,60756.0,60755.0,0.164595]
[1722705583926,0.001,60756.0,60755.0,0.493786]
[1722705584181,0.001,60756.0,60755.0,0.8353985]
[1722705584426,0.001,60756.0,60755.0,1.40214874]
[1722705584605,0.001,60756.0,60755.0,1.53514874]
[1722705584801,0.00157439,60777.0,60763.0,0.329145]
[1722705585037,0.00157439,60777.0,60755.0,0.37298074]
[1722705585038,0.00157439,60777.0,60764.0,0.03863438]
[1722705585240,0.00157439,60777.0,60764.0,0.03534331]
[1722705585467,0.00157439,60781.0,60767.0,0.07875194]
[1722705585671,0.00157439,60782.0,60768.0,0.18374974]
[1722705586014,0.0841,60788.0,60768.0,0.18374974]
[1722705586015,0.00157439,60787.0,60769.0,0.14984249]